bitfinex/quotes_ETHUSD_20240819
["timestamp","ask_amount","ask_price","bid_price","bid_amount"]
[1724053557291,0.13351382,2624.7,2624.6,3.031]
[1724053557794,0.79640628,2624.9,2624.6,5.69797]
[1724053557997,0.13352086,2624.8,2624.6,0.55]
[1724053558164,0.13352086,2624.8,2624.5,1.634]
[1724053558900,0.13352086,2624.8,2624.5,4.30116]
[1724053560508,0.13352086,2624.8,2624.6,0.55]
[1724053560808,0.13352086,2624.8,2624.5,4.3011]
[1724053560809,0.13352086,2624.8,2624.5,1.634]
[1724053561162,0.13352086,2624.8,2624.3,6.78231]
[1724053561380,0.92992714,2624.8,2624.4,0.55]
[1724053561610,3.59679714,2624.8,2624.4,0.55]
[1724053563758,2.66698,2624.7,2624.4,0.55]
[1724053564072,0.13348126,2624.6,2624.4,0.55]
[1724053564706,2.66697,2624.7,2624.4,0.55]
[1724053564907,0.13347422,2624.5,2624.4,0.55]
[1724053565109,6.13041628,2624.7,2624.4,0.55]
[1724053565320,0.13345826,2624.5,2624.3,4.115]
[1724053565518,3.35364473,2624.7,2624.3,4.115]
[1724053565673,0.13345122,2624.4,2624.3,4.115]
[1724053566010,0.13345122,2624.4,2624.3,4.665]
[1724053566224,3.46337628,2624.7,2624.3,4.665]
[1724053566360,0.13344752,2624.4,2624.3,4.665]
[1724053566565,3.46337628,2624.7,2624.3,4.665]
[1724053566884,0.1334653,2624.6,2624.3,4.665]
[1724053567505,0.1334653,2624.6,2624.3,7.33236]
[1724053568014,0.13346227,2624.5,2624.3,7.33236]
[1724053568165,0.79640628,2624.7,2624.3,7.33236]
[1724053568365,0.13346931,2624.6,2624.3,7.33236]
[1724053568613,0.13346931,2624.6,2624.4,2.66726]
[1724053568978,0.79640628,2624.8,2624.4,2.66726]
[1724053569225,0.13347635,2624.7,2624.4,2.66726]
[1724053569556,0.79640628,2624.8,2624.4,2.66726]
[1724053569761,0.79640628,2624.7,2624.3,7.33237]
[1724053569925,0.92988263,2624.7,2624.4,0.55]
[1724053570348,0.92988263,2624.7,2624.4,3.21726]
[1724053570713,0.92988263,2624.7,2624.4,0.55]
[1724053570919,0.92988263,2624.7,2624.3,4.115]
[1724053571164,0.92988263,2624.7,2624.3,1.634]
[1724053571457,0.79640628,2624.6,2624.3,1.634]
[1724053571816,0.13346441,2624.5,2624.3,1.634]
[1724053574258,0.92987069,2624.5,2624.3,1.634]
[1724053576267,0.79640628,2624.4,2624.3,1.634]
[1724053576695,0.79640628,2624.4,2623.8,5.66786]
[1724053576696,1.95882751,2624.4,2624.0,2.66762]
[1724053576898,1.95882751,2624.4,2623.9,2.66775]
[1724053576899,0.79596195,2624.2,2623.9,2.66775]
[1724053577067,0.79596195,2624.1,2624.0,0.55]
[1724053577272,1.32736232,2624.1,2624.0,0.55]
[1724053577473,0.92968452,2624.1,2624.0,2.66768]
[1724053577671,0.92968452,2624.1,2624.0,3.21768]
[1724053578302,0.13341939,2624.1,2624.0,3.21768]
[1724053578612,0.55169647,2624.1,2624.0,3.21768]
[1724053578818,0.92995327,2624.1,2624.0,3.21768]
[1724053578962,0.13341939,2624.1,2624.0,8.23546]
[1724053580279,0.79653388,2624.2,2624.1,5.33516]
[1724053580589,0.79653388,2624.2,2624.1,7.51916]
[1724053581404,0.79653388,2624.2,2624.1,8.506086]
[1724053582397,1.19394293,2624.3,2624.2,2.66747]
[1724053582603,1.61225626,2624.3,2624.2,3.21747]
[1724053583279,1.61225626,2624.3,2624.2,6.5573776]
[1724053583892,1.74563222,2624.3,2624.2,6.5573776]
[1724053585953,1.74563222,2624.3,2624.2,5.47177]
[1724053589122,1.74563222,2624.3,2624.2,8.13924]
[1724053589685,0.93090663,2624.3,2624.2,8.13924]
[1724053592069,0.92090663,2624.3,2624.2,8.13924]
[1724053593494,1.73546554,2624.3,2624.2,5.88494]
[1724053595165,1.73546554,2624.3,2624.2,4.85147]
[1724053595944,1.31731889,2624.3,2624.2,4.85147]
[1724053596271,1.73549763,2624.3,2624.2,4.85147]
[1724053596642,1.73550447,2624.3,2624.2,4.85147]
[1724053597064,2.34030752,2624.3,2624.2,2.184]
[1724053597540,1.7376612,2624.3,2624.2,2.184]
[1724053597770,2.34029683,2624.3,2624.2,2.184]
[1724053597973,0.74748427,2624.3,2624.2,4.85147]
[1724053598329,2.34029683,2624.3,2624.2,4.85147]
[1724053599227,0.74748427,2624.3,2624.2,4.85147]
[1724053599671,2.34029683,2624.3,2624.2,4.85147]
[1724053600025,0.7474891,2624.3,2624.2,4.85147]
[1724053600227,1.73778381,2624.3,2624.2,4.85147]
[1724053602495,0.92082456,2624.3,2624.2,8.504369]
[1724053602869,1.33901057,2624.3,2624.2,8.504369]
[1724053603389,0.54156197,2624.3,2624.2,8.504369]
[1724053604177,0.541551,2624.3,2624.2,8.504369]
[1724053605390,1.33904563,2624.3,2624.2,8.504369]
[1724053605596,1.33900471,2624.3,2624.2,8.504369]
[1724053605939,1.33900918,2624.3,2624.2,8.504369]
[1724053608099,1.33899933,2624.3,2624.2,8.504369]
[1724053608385,0.92083414,2624.3,2624.2,8.504369]
[1724053608589,0.54154096,2624.3,2624.2,8.504369]
[1724053609373,1.73776323,2624.3,2624.2,8.504369]
[1724053609575,0.54154096,2624.3,2624.2,8.504369]
[1724053609897,0.54154035,2624.3,2624.2,8.504369]
[1724053613105,1.33874381,2624.3,2624.2,8.504369]
[1724053613455,0.54154035,2624.3,2624.2,11.171839]
[1724053613791,0.54154035,2624.3,2624.2,14.84172774]
[1724053613792,0.12337596,2624.3,2624.2,14.84172774]
[1724053613995,0.12337596,2624.3,2624.2,54.82966057]
[1724053614196,0.79721977,2624.7,2624.6,7.67874]
[1724053614442,0.79721977,2624.7,2624.6,9.86274]
[1724053614604,0.92594925,2624.7,2624.6,9.86274]
[1724053615041,1.34404574,2624.7,2624.6,7.51814]
[1724053615547,1.3440486,2624.7,2624.6,8.773258]
[1724053616094,0.92594925,2624.7,2624.6,8.773258]
[1724053616350,1.34404238,2624.7,2624.6,8.773258]
[1724053616635,0.92594925,2624.7,2624.6,8.773258]
[1724053617600,1.34398861,2624.7,2624.6,8.773258]
[1724053617842,1.34398861,2624.7,2624.6,6.106188]
[1724053618055,1.34398861,2624.7,2624.4,5.03301]
[1724053618056,1.74299111,2624.7,2624.4,2.66721]
[1724053618264,1.19479563,2624.5,2624.4,2.66721]
[1724053618566,1.61283499,2624.5,2624.4,2.66721]
[1724053618876,1.74160069,2624.5,2624.4,2.66721]
[1724053619515,1.74160069,2624.5,2624.4,3.21721]
[1724053620169,1.74144642,2624.5,2624.4,3.21721]
[1724053620601,0.1287657,2624.5,2624.4,3.21721]
[1724053620738,1.74146445,2624.5,2624.4,3.21721]
[1724053621724,1.74147542,2624.5,2624.4,3.21721]
[1724053623367,1.34315243,2624.5,2624.4,3.21721]
[1724053623570,1.3432321,2624.5,2624.4,3.21721]
[1724053623769,0.92528554,2624.5,2624.4,3.21721]
[1724053624277,0.92528554,2624.5,2624.4,6.883578]
[1724053624479,0.1287657,2624.5,2624.4,15.009148]
[1724053624824,0.1287657,2624.5,2624.4,12.341878]
[1724053625055,0.79651984,2624.7,2624.6,2.66707]
[1724053625259,0.79651984,2624.7,2624.6,6.3519648]
[1724053625662,1.21448294,2624.7,2624.6,6.3519648]
[1724053626260,1.21448294,2624.7,2624.6,9.0190348]
[1724053626741,0.79651984,2624.7,2624.6,9.0190348]
[1724053627070,1.3432398,2624.7,2624.6,9.0190348]
[1724053627374,0.92528268,2624.7,2624.6,9.0190348]
[1724053631895,1.34318268,2624.7,2624.6,1.634]
[1724053632183,1.74092273,2624.7,2624.6,1.634]
[1724053632940,0.74932161,2624.7,2624.6,1.634]
[1724053633158,0.74929991,2624.7,2624.6,1.634]
[1724053633964,0.74929991,2624.7,2624.5,2.66717]
[1724053634172,1.61210497,2624.6,2624.5,2.66717]
[1724053634371,0.4178783,2624.6,2624.5,4.85117]
[1724053634683,1.3428436,2624.6,2624.5,4.85117]
[1724053634901,0.9249653,2624.6,2624.5,8.27019]
[1724053635187,0.12878138,2624.6,2624.5,8.27019]
[1724053637187,0.9249653,2624.6,2624.5,8.27019]
[1724053637594,0.9249653,2624.6,2624.5,6.63619]
[1724053637898,0.12878138,2624.6,2624.5,4.85117]
[1724053638185,0.5466733,2624.6,2624.5,4.85117]
[1724053638966,1.34283224,2624.6,2624.5,4.85117]
[1724053639575,0.5466733,2624.6,2624.5,4.85117]
[1724053639772,1.34285542,2624.6,2624.5,4.85117]
[1724053639971,0.5466733,2624.6,2624.5,4.85117]
[1724053640549,0.5466733,2624.6,2624.5,9.97034]
[1724053640550,1.34288774,2624.6,2624.5,9.97034]
[1724053640765,0.12878138,2624.6,2624.5,9.97034]
[1724053641163,0.79621444,2624.8,2624.7,2.66697]
[1724053641360,0.79621444,2624.8,2624.7,4.85097]
[1724053643390,0.79621444,2624.8,2624.7,7.51794]
[1724053644684,0.92499512,2624.8,2624.7,7.51794]
[1724053644994,0.54664185,2624.8,2624.7,7.51794]
[1724053645350,0.92496547,2624.8,2624.7,7.51794]
[1724053648319,1.34280649,2624.8,2624.7,7.51794]
[1724053648615,1.34282662,2624.8,2624.7,7.51794]
[1724053649122,0.9249856,2624.8,2624.7,7.51794]
[1724053649622,0.12878068,2624.8,2624.7,10.985334]
[1724053651718,0.79620492,2625.0,2624.9,2.66676]
[1724053652053,0.79620492,2625.0,2624.9,4.85076]
[1724053653712,0.92502682,2625.0,2624.9,4.85076]
[1724053653889,0.92502682,2625.0,2624.9,7.51752]
[1724053657983,0.92502682,2625.0,2624.9,8.30001368]
[1724053658673,0.92502682,2625.0,2624.9,7.51752]
[1724053659519,0.1288219,2625.0,2624.9,7.51752]
[1724053659755,0.1288219,2625.0,2624.9,9.79962]
[1724053660160,0.79620492,2625.2,2625.1,2.66656]
[1724053660359,0.79620492,2625.2,2625.1,5.280484]
[1724053660516,0.79620492,2625.2,2625.1,4.30056]
[1724053663389,0.79620492,2625.2,2625.1,6.96712]
[1724053663686,0.79620492,2625.3,2625.2,5.33292]
[1724053663969,0.79576142,2625.3,2625.1,1.634]
[1724053664130,0.92479707,2625.3,2625.2,2.4136]
[1724053664460,0.12903565,2625.3,2625.2,2.4136]
[1724053664679,0.12903565,2625.3,2625.2,3.092642]
[1724053664856,0.12903565,2625.3,2625.2,8.425562]
[1724053668500,0.79576142,2625.5,2625.3,2.66636]
[1724053668707,0.79576142,2625.5,2625.4,1.634]
[1724053668916,23.53191256,2625.7,2625.5,2.6661]
[1724053669203,1.19305117,2625.6,2625.5,2.6661]
[1724053669373,1.6108802,2625.6,2625.5,2.6661]
[1724053671097,1.74003174,2625.6,2625.5,2.6661]
[1724053671772,1.32220271,2625.6,2625.5,2.6661]
[1724053671966,1.7400555,2625.6,2625.5,2.6661]
[1724053672193,1.32220271,2625.6,2625.5,2.6661]
[1724053672707,0.12915154,2625.6,2625.5,2.6661]
[1724053673567,0.92431619,2625.6,2625.5,2.6661]
[1724053673888,1.32220271,2625.6,2625.5,2.6661]
[1724053674473,1.32220271,2625.6,2625.4,4.30022]
[1724053674474,0.92404707,2625.6,2625.4,4.3002]
[1724053674722,0.79480713,2625.5,2625.4,2.6662]
[1724053675045,0.1291482,2625.5,2625.3,2.66635]
[1724053675246,0.79479421,2625.4,2625.3,2.66635]
[1724053675446,0.92394241,2625.5,2625.3,2.66635]
[1724053675647,0.12916489,2625.4,2625.3,2.66635]
[1724053675965,0.9239591,2625.4,2625.3,2.66635]
[1724053676768,0.9239591,2625.4,2625.2,1.634]
[1724053676967,2.3124,2625.2,2624.9,2.6667]
[1724053677124,3.10701848,2625.2,2624.9,2.6667]
[1724053677321,0.12906949,2625.1,2624.9,2.6667]
[1724053677671,0.12906949,2625.1,2624.8,4.30077]
[1724053677850,0.92368797,2625.1,2624.8,4.30077]
[1724053678263,0.12906949,2625.1,2624.9,2.66675]
[1724053678466,0.12906949,2625.1,2625.0,2.66666]
[1724053679252,0.12906949,2625.1,2625.0,4.30066]
[1724053680593,0.92368797,2625.1,2625.0,1.634]
[1724053680750,0.92368797,2625.1,2624.9,1.634]
[1724053681237,0.92368797,2625.1,2624.9,4.30075]
[1724053682631,0.92368797,2625.1,2625.0,2.66666]
[1724053682632,0.12906949,2625.1,2625.0,2.66666]
[1724053683553,0.12906949,2625.1,2624.9,1.634]
[1724053683554,0.92368797,2625.1,2624.9,1.634]
[1724053684037,0.92368797,2625.1,2624.9,4.30076]
[1724053686043,0.92368797,2625.1,2625.0,2.66666]
[1724053686246,0.92368797,2625.1,2625.0,6.030063]
[1724053686437,0.12906949,2625.1,2625.0,8.291163]
[1724053691432,0.92368797,2625.1,2625.0,8.291163]
[1724053691676,0.12906949,2625.1,2625.0,9.925163]
[1724053692283,0.12906949,2625.1,2625.0,10.475163]
[1724053695599,0.92368797,2625.1,2625.0,10.475163]
[1724053695756,0.92368797,2625.1,2625.0,7.51732]
[1724053695957,0.12906949,2625.1,2625.0,4.30066]
[1724053696158,1.73974621,2625.1,2625.0,4.30066]
[1724053697853,0.54669504,2625.1,2625.0,4.30066]
[1724053698699,1.32212066,2625.1,2625.0,4.30066]
[1724053699009,1.34260936,2625.1,2625.0,4.30066]
[1724053700172,1.34260936,2625.1,2625.0,6.96732]
[1724053700376,0.92499322,2625.1,2625.0,6.96732]
[1724053701417,1.34262906,2625.1,2625.0,6.96732]
[1724053701586,0.92499322,2625.1,2625.0,6.96732]
[1724053701789,0.92499322,2625.1,2625.0,7.51732]
[1724053702104,0.92499322,2625.1,2625.0,10.894842]
[1724053702276,0.12906949,2625.1,2625.0,10.894842]
[1724053702483,0.92499322,2625.1,2625.0,10.894842]
[1724053703611,0.12906949,2625.1,2625.0,10.894842]
[1724053703782,0.92499322,2625.1,2625.0,10.894842]
[1724053704408,0.12906949,2625.1,2625.0,10.894842]
[1724053704610,0.92499322,2625.1,2625.0,10.894842]
[1724053706087,0.12906949,2625.1,2625.0,10.894842]
[1724053706288,0.92499322,2625.1,2625.0,10.894842]
[1724053707215,0.12906949,2625.1,2625.0,10.894842]
[1724053707367,0.12906949,2625.1,2625.0,8.504642]
[1724053709088,0.92499322,2625.1,2625.0,8.504642]
[1724053710581,0.92499322,2625.1,2625.0,7.51732]
[1724053710896,0.12906949,2625.1,2625.0,6.96732]
[1724053711607,0.92499322,2625.1,2625.0,6.96732]
[1724053713695,1.34268474,2625.1,2625.0,6.96732]
[1724053713895,0.54676101,2625.1,2625.0,4.30066]
[1724053714228,1.73981218,2625.1,2625.0,4.30066]
[1724053714379,2.66667,2625.0,2624.5,2.66711]
[1724053714580,0.79614148,2624.6,2624.3,2.66736]
[1724053714809,0.79603337,2624.5,2624.4,2.66727]
[1724053714974,0.79603337,2624.5,2624.3,4.30131]
[1724053714975,1.73966808,2624.5,2624.3,4.30131]
[1724053715179,0.79601595,2624.4,2624.3,4.30131]
[1724053715390,0.12899853,2624.4,2624.3,4.30131]
[1724053715625,0.92501448,2624.4,2624.3,4.30131]
[1724053716099,0.12899853,2624.4,2624.3,4.30131]
[1724053716506,0.92501448,2624.4,2624.3,4.30131]
[1724053716698,0.12899853,2624.4,2624.3,4.30131]
[1724053719386,0.79601595,2624.6,2624.4,2.66727]
[1724053719623,0.79601595,2624.6,2624.5,1.634]
[1724053719785,0.41759193,2624.6,2624.5,1.634]
[1724053719987,2.4759,2624.5,2624.2,1.634]
[1724053720328,2.4759,2624.5,2624.0,2.66762]
[1724053720329,0.79490122,2624.4,2624.0,2.66762]
[1724053720486,0.79490122,2624.3,2624.1,1.634]
[1724053720889,0.79490122,2624.3,2623.7,2.66791]
[1724053721182,0.79490122,2624.1,2623.8,1.634]
[1724053721423,0.79490122,2624.1,2624.0,1.634]
[1724053721623,3.83998889,2624.2,2624.0,1.634]
[1724053721624,3.31386331,2624.2,2624.0,1.634]
[1724053723203,2.51896209,2624.2,2624.0,1.634]
[1724053723387,2.2799,2624.2,2624.0,1.634]
[1724053723588,3.07480122,2624.2,2624.0,1.634]
[1724053724331,2.2799,2624.2,2624.0,1.634]
[1724053724921,0.12855626,2624.1,2624.0,1.634]
[1724053726832,3.68716912,2624.4,2624.0,1.634]
[1724053727137,0.1285543,2624.1,2624.0,1.634]
[1724053727356,0.71403892,2624.3,2624.0,1.634]
[1724053727563,0.1285543,2624.1,2624.0,1.634]
[1724053727773,0.71403892,2624.3,2624.0,1.634]
[1724053727932,0.12856135,2624.2,2624.0,1.634]
[1724053728263,0.1285543,2624.1,2624.0,1.634]
[1724053728659,0.71403892,2624.3,2624.0,1.634]
[1724053728830,0.1285543,2624.1,2624.0,1.634]
[1724053729034,0.71403892,2624.3,2624.0,1.634]
[1724053729524,0.12856135,2624.2,2624.0,1.634]
[1724053729970,3.68716912,2624.4,2624.0,4.30167]
[1724053730255,0.1285543,2624.1,2624.0,4.30167]
[1724053730462,2.8922679,2624.4,2624.0,4.30167]
[1724053730956,0.1285262,2624.1,2624.0,4.30167]
[1724053731156,2.8922679,2624.4,2624.0,4.30167]
[1724053731466,2.4889,2624.4,2624.0,4.30167]
[1724053731753,0.12854029,2624.3,2624.0,4.30167]
[1724053732654,0.12854029,2624.3,2624.0,1.634]
[1724053733256,0.12854029,2624.3,2623.6,5.33608]
[1724053733461,0.12854029,2624.3,2623.9,1.634]
[1724053733462,2.66748,2624.2,2623.9,1.634]
[1724053733755,0.12852678,2624.2,2623.9,1.634]
[1724053734057,3.27688783,2624.3,2623.9,1.634]
[1724053734351,0.12851974,2624.1,2623.9,1.634]
[1724053734552,0.92279391,2624.2,2623.9,1.634]
[1724053734710,0.12851269,2624.0,2623.9,1.634]
[1724053734918,0.92279391,2624.2,2623.9,1.634]
[1724053735119,0.12851269,2624.0,2623.9,1.634]
[1724053735319,0.92279391,2624.2,2623.9,1.634]
[1724053735567,0.12851269,2624.0,2623.9,1.634]
[1724053735750,0.92279391,2624.2,2623.9,1.634]
[1724053736363,0.12851974,2624.1,2623.9,1.634]
[1724053738165,2.3894,2624.0,2623.9,1.634]
[1724053738385,2.3894,2624.0,2623.4,2.66823]
[1724053738386,5.05709,2624.0,2623.4,2.66822]
[1724053738540,5.18560186,2624.0,2623.5,1.634]
[1724053740246,2.66788,2623.8,2623.2,2.66844]
[1724053740433,19.58,2623.9,2623.0,2.6686]
[1724053740434,5.07256,2623.6,2623.0,2.6686]
[1724053740771,0.12836768,2623.5,2623.2,1.634]
[1724053742108,0.12836768,2623.5,2623.4,1.634]
[1724053745572,22.24799,2623.7,2623.4,1.634]
[1724053745780,0.1282416,2623.5,2623.4,1.634]
[1724053746313,22.24799,2623.7,2623.4,1.634]
[1724053746460,0.1282897,2623.5,2623.4,1.634]
[1724053746802,0.1282897,2623.5,2623.2,1.634]
[1724053747511,2.66829,2623.4,2622.8,5.15314]
[1724053747817,0.12815458,2623.3,2623.1,1.634]
[1724053762833,2.42025458,2623.3,2622.9,1.634]
[1724053763329,2.42025458,2623.3,2622.9,4.30279]
[1724053763725,22.00025458,2623.3,2622.9,1.634]
[1724053764486,22.00025458,2623.3,2623.1,1.634]
[1724053765544,19.70815458,2623.3,2623.1,4.30258]
[1724053767449,19.70815458,2623.3,2623.1,1.634]
[1724053768852,19.70815458,2623.3,2623.1,4.30258]
[1724053769026,0.12815458,2623.3,2623.1,4.30258]
[1724053769218,0.12815458,2623.3,2623.1,1.634]
[1724053774634,0.9230558,2623.3,2623.1,1.634]
[1724053774860,0.12815458,2623.3,2623.1,1.634]
[1724053775456,0.9230558,2623.3,2623.1,1.634]
[1724053777569,0.79490122,2623.2,2623.1,1.634]
[1724053777809,0.9230558,2623.3,2623.1,1.634]
[1724053777956,0.12373451,2623.2,2623.1,1.634]
[1724053778400,0.79490122,2623.2,2623.1,1.634]
[1724053778579,0.12373451,2623.2,2623.1,1.634]
[1724053778987,0.79490122,2623.3,2623.1,1.634]
[1724053779182,0.12373451,2623.2,2623.1,1.634]
[1724053779505,0.79490122,2623.2,2623.1,1.634]
[1724053779705,0.12373451,2623.2,2623.1,1.634]
[1724053780113,0.79490122,2623.3,2623.1,1.634]
[1724053780289,0.91872287,2623.2,2623.1,1.634]
[1724053780698,0.91872287,2623.2,2623.1,4.30259]
[1724053780699,0.12382165,2623.2,2623.1,4.30259]
[1724053780912,0.79490122,2623.3,2623.1,4.30259]
[1724053781201,0.12381534,2623.2,2623.1,4.30259]
[1724053781405,0.91871656,2623.2,2623.1,4.30259]
[1724053781703,0.91461402,2623.2,2623.1,4.30259]
[1724053781904,0.91461402,2623.2,2623.1,1.634]
[1724053782284,0.91461402,2623.2,2623.1,10.021101]
[1724053782506,0.91461402,2623.2,2623.1,12.57987]
[1724053782507,0.1197128,2623.2,2623.1,12.57987]
[1724053782868,20.37490122,2623.4,2623.3,5.33678]
[1724053783076,20.49457734,2623.4,2623.3,6.97078]
[1724053784410,21.99704524,2623.4,2623.3,1.634]
[1724053784989,21.99704524,2623.4,2623.1,4.30252]
[1724053785192,1.19319081,2623.2,2623.1,1.634]
[1724053785509,0.82048091,2623.2,2623.1,1.634]
[1724053785674,1.72664109,2623.2,2623.1,1.634]
[1724053787656,0.4031034,2623.2,2623.1,1.634]
[1724053787761,0.82048939,2623.2,2623.1,1.634]
[1724053788191,2.41330195,2623.2,2622.8,2.66883]
[1724053788516,1.1935433,2623.0,2622.9,1.634]
[1724053788695,1.61092929,2623.0,2622.9,1.634]
[1724053789013,0.82052454,2623.0,2622.9,1.634]
[1724053789160,2.41330495,2623.0,2622.9,1.634]
[1724053789362,2.41330495,2623.0,2622.6,2.66906]
[1724053789613,0.79564449,2622.8,2622.6,2.66906]
[1724053789966,0.79564449,2622.8,2622.7,2.669]
[1724053790879,0.79564449,2622.8,2622.7,4.303]
[1724053792661,0.91133495,2622.8,2622.7,4.303]
[1724053796779,0.11569046,2622.8,2622.7,4.303]
[1724053797510,0.91133495,2622.8,2622.7,4.303]
[1724053799289,0.11569046,2622.8,2622.7,4.303]
[1724053801087,0.91133495,2622.8,2622.7,4.303]
[1724053801736,0.91133495,2622.8,2622.7,6.972]
[1724053801886,0.11569046,2622.8,2622.7,7.90393]
[1724053803131,19.58,2623.0,2622.9,2.6688]
[1724053803435,19.99736256,2623.0,2622.9,4.3028]
[1724053803600,20.37611374,2623.0,2622.9,4.3028]
[1724053804834,0.79611374,2623.0,2622.9,4.3028]
[1724053805728,0.90790472,2623.0,2622.9,4.3028]
[1724053806418,0.52915467,2623.0,2622.9,4.3028]
[1724053806746,0.90785492,2623.0,2622.9,4.3028]
[1724053809841,0.90785492,2623.0,2622.9,2.6688]
[1724053810133,1.32558241,2623.0,2622.9,4.3028]
[1724053810357,0.90788287,2623.0,2622.9,4.3028]
[1724053811109,0.90788287,2623.0,2622.9,6.9716]
[1724053814611,0.52949272,2623.0,2622.9,6.9716]
[1724053814932,0.52949272,2623.0,2622.9,4.3028]
[1724053814933,1.99221779,2623.0,2622.9,4.3028]
[1724053815110,2.40996278,2623.0,2622.9,4.3028]
[1724053815311,2.40996278,2623.0,2622.3,5.73570646]
[1724053815312,4.90026278,2623.0,2622.5,2.66912]
[1724053815539,0.79610871,2622.6,2622.5,4.30312]
[1724053815954,0.90405831,2622.6,2622.5,4.30312]
[1724053817343,0.90405831,2622.6,2622.5,1.634]
[1724053818555,0.90405831,2622.6,2622.3,2.66933]
[1724053818556,0.1079496,2622.6,2622.3,2.66933]
[1724053818858,1.19416307,2622.5,2622.4,1.634]
[1724053819050,1.71960061,2622.5,2622.4,1.634]
[1724053819240,1.7195824,2622.5,2622.4,1.634]
[1724053820168,2.69552637,2622.5,2622.4,1.634]
[1724053820572,1.5013633,2622.5,2622.4,1.634]
[1724053820870,0.90299431,2622.5,2622.4,4.30331]
[1724053821185,0.10781272,2622.5,2622.4,6.78581]
[1724053822958,0.10781272,2622.5,2622.4,1.634]
[1724053823141,0.10781272,2622.5,2622.1,2.66955]
[1724053823142,3.55021005,2622.5,2622.1,2.66955]
[1724053823494,0.79496701,2622.4,2622.2,1.634]
[1724053823788,3.94919153,2622.5,2622.2,1.634]
[1724053823789,0.90271493,2622.3,2622.2,1.634]
[1724053823954,0.10774792,2622.3,2622.2,1.634]
[1724053824371,3.23246701,2622.5,2622.2,1.634]
[1724053824580,0.10778158,2622.3,2622.2,1.634]
[1724053824747,0.79496701,2622.4,2622.2,1.634]
[1724053825100,5.18539158,2622.3,2621.7,5.14503]
[1724053825298,0.79439742,2622.1,2621.8,1.634]
[1724053825536,0.10762375,2622.0,2621.8,1.634]
[1724053826294,0.58420017,2622.0,2621.8,1.634]
[1724053826810,0.10762375,2622.0,2621.8,1.634]
[1724053826995,3.46397742,2622.2,2621.8,1.634]
[1724053827447,0.10761166,2622.1,2621.8,1.634]
[1724053827627,0.90200908,2622.1,2621.8,1.634]
[1724053828103,0.10761166,2622.1,2621.8,1.634]
[1724053828298,0.10761166,2622.1,2621.5,2.67013]
[1724053828299,2.4437,2622.0,2621.5,2.67013]
[1724053828528,0.10752486,2621.9,2621.6,1.634]
[1724053829842,0.10752486,2621.9,2621.5,2.67013]
[1724053830012,0.10752486,2621.9,2621.6,1.634]
[1724053831033,2.66998,2621.8,2621.3,2.4822]
[1724053831273,2.66998,2621.8,2621.1,5.34112]
[1724053831274,3.46441742,2621.7,2621.2,4.30453]
[1724053831400,1.25904911,2621.7,2621.2,4.30453]
[1724053831604,0.46465169,2621.7,2621.2,4.30453]
[1724053832117,0.51771956,2621.7,2621.2,4.30453]
[1724053832318,2.63856996,2621.6,2621.3,1.634]
[1724053834305,0.10746146,2621.7,2621.5,1.634]
[1724053834505,19.58,2622.0,2621.8,2.66991]
[1724053834746,21.8695,2622.1,2621.8,1.634]
[1724053834956,0.16042117,2621.9,2621.8,1.634]
[1724053835107,0.16042117,2621.9,2621.0,5.4666]
[1724053835108,2.2895,2621.9,2621.0,5.4666]
[1724053835458,3.326339,2621.8,2621.3,2.6704]
[1724053837937,3.326339,2621.8,2621.3,4.3044]
[1724053839640,4.0433,2621.7,2620.5,0.06636081]
[1724053839845,2.67166,2620.1,2619.6,2.81387218]
[1724053840038,3.11912021,2620.8,2619.6,2.4149]
[1724053840039,2.67142,2620.4,2619.6,2.4149]
[1724053840324,2.67145,2620.3,2619.7,0.24149]
[1724053840580,0.16034395,2620.2,2619.8,1.634]
[1724053841039,2.67145,2620.3,2619.8,1.634]
[1724053841239,0.16000946,2620.2,2619.8,1.634]
[1724053841647,2.67156,2620.2,2619.8,1.634]
[1724053841849,0.15998719,2620.1,2619.8,1.634]
[1724053842146,0.15998719,2620.1,2619.6,6.72099]
[1724053842669,0.15998719,2620.1,2619.6,5.08699]
[1724053844762,0.15998719,2620.1,2619.6,2.4149]
[1724053845144,2.67145,2620.3,2619.6,2.4149]
[1724053845511,0.15964437,2620.2,2619.6,2.4149]
[1724053845646,0.15964437,2620.2,2619.6,5.08699]
[1724053846683,0.15964437,2620.2,2619.6,7.75909]
[1724053846977,0.15964437,2620.2,2619.6,5.08699]
[1724053847144,2.83120437,2620.2,2619.6,5.08699]
[1724053847878,2.67168,2620.1,2619.6,2.4149]
[1724053848289,2.67187,2619.9,2619.3,5.08444]
[1724053848779,0.15963416,2619.8,2619.4,2.67235]
[1724053849081,0.15963416,2619.8,2619.4,2.67229]
[1724053849247,0.15963416,2619.8,2619.3,2.412]
[1724053849248,0.15963416,2619.8,2619.6,2.67209]
[1724053849457,0.01313448,2620.2,2619.6,2.67209]
[1724053849665,2.68468448,2620.2,2619.6,2.67209]
[1724053850195,0.01313448,2620.2,2619.6,5.34419]
[1724053850336,2.4067,2620.4,2619.8,5.12918]
[1724053850538,8.07812,2620.4,2619.8,5.12918]
[1724053851388,2.67145,2620.3,2619.8,5.12918]
[1724053851806,0.15962648,2620.2,2619.8,5.12918]
[1724053852215,2.67145,2620.3,2619.8,5.12918]
[1724053852541,0.15962145,2620.1,2620.0,2.67175]
[1724053852678,5.3418,2620.9,2619.8,2.4573]
[1724053852679,0.15426288,2620.2,2620.1,5.06665]
[1724053852880,2.68410448,2620.8,2620.2,2.67154]
[1724053853127,0.53549845,2620.7,2620.2,2.67154]
[1724053853845,0.53549845,2620.7,2620.1,5.06665]
[1724053853846,3.20654845,2620.7,2620.1,5.06665]
[1724053854621,5.87765845,2620.7,2620.1,5.06665]
[1724053854936,3.20654845,2620.7,2620.1,5.06665]
[1724053855125,3.20654845,2620.7,2620.1,7.73823]
[1724053855336,0.15437631,2620.6,2620.1,5.06658]
[1724053856224,2.82551631,2620.6,2620.1,5.06658]